{"text_format":"1","workbook":"xlsx","n_sheets":3,"sheets":["Hoja1","Hoja2","Hoja3"],"not_rendered":{"charts":0,"images":0,"macros":0,"external_links":0,"defined_names":1,"comments":0,"pivot_tables":0},"unopened":[],"bounds":{"document_bytes":16777216,"sheet_cells":100000,"rows_first":2000,"rows_last":500,"rows_between":2000,"halvings":0,"cell_chars":16384,"cell_head_chars":4096},"cells_cut":0,"cells_raw":0,"read":"whole","date_system":"1900"}

{"sheet":"Hoja1","index":0,"n_rows":50,"n_cols":17,"rows_kept":50,"cut":false,"hidden":false,"merged":[[0,1,0,16],[2,1,2,16]]}
[null,"INSTITUTO TECNOLÓGICO SUPERIOR DE PEROTE"]
[]
[null,"VIÁTICOS EJERCIDOS EN EL MES DE: JULIO 2022"]
[]
["ÁREA","OBJETO O MOTIVO DE LA COMISIÓN","SERV. PÚB. COMISIONADOS","LUGAR DE COMISIÓN","DESTINO DE LA COMISIÓN","FECHA DE INICIO","FECHA DE TERMINO","ORIGEN DEL RECURSO","ALIMENTOS","HOSPEDAJE","PASAJES","PEAJES","TRASLADOS LOCALES","COMBUSTIBLE","OTROS GASTOS ","IMPORTE EJERCIDO","RESPONSABLE QUE PROPORCIONA LA INFORMACIÓN"]
["DG","ASISTIR A REALIZAR DIFERENTES COMISIONES ",1,"EDO.","XALAPA","2022-07-07","2022-07-07","FED.",206,null,null,330,null,null,null,{"$f":"SUM(I6:O6)","v":536},"REC. FINANCIEROS"]
["DG","ASISTIR A REALIZAR DIFERENTES COMISIONES ",1,"EDO.","XALAPA","2022-07-07","2022-07-07","FED.",null,null,null,90,null,300,null,{"$f":"SUM(I7:O7)","v":390},"REC. FINANCIEROS"]
["PYV","ASISTIR A EVENTO DEPORTIVO DE EXPO FERIA EDUCATIVA 2022",80,"EDO.","BANDERILLA","2022-07-07","2022-07-07","FED.",3920.11,null,null,null,null,null,null,3920.11,"REC. FINANCIEROS"]
["ACAD.","ASISTIR A PRIMERA SESIÓN ORDINARIA DEL CONSEJO ASESOR DEL PARQUE NAC. COFRE DE PEROTE",1,"EDO.","XALAPA","2022-07-07","2022-07-07","FED.",null,null,null,null,null,150,null,150,"REC. FINANCIEROS"]
["PYV","ASISTIR A PROMOCIÓN EN TELEBACHILLERATO DE XOLOLOYAN",1,"EDO.","AYAHUALULCO","2022-07-07","2022-07-07","FED.",null,null,null,null,null,200,null,200,"REC. FINANCIEROS"]
["PYV","ASISTIR A REALIZAR DIFERENTES COMISIONES ",1,"EDO.","XALAPA","2022-07-07","2022-07-07","FED.",195,null,null,165,null,300,null,660,"REC. FINANCIEROS"]
["DG","ASISTIR A REALIZAR DIFERENTES COMISIONES ",1,"EDO.","XALAPA","2022-07-19","2022-07-19","FED.",117,null,null,492,null,400,null,1009,"REC. FINANCIEROS"]
["DG","ASISTIR A REALIZAR DIFERENTES COMISIONES ",1,"EDO.","XALAPA","2022-07-19","2022-07-19","FED.",1440,null,null,330,null,400,null,2170,"REC. FINANCIEROS"]
["DG","ASISTIR A REALIZAR DIFERENTES COMISIONES ",1,"EDO.","XALAPA","2022-07-19","2022-07-19","FED.",285,null,null,657,null,562.33,22,1526.33,"REC. FINANCIEROS"]
["DG","ASISTIR A REALIZAR DIFERENTES COMISIONES ",1,"EDO.","XALAPA","2022-07-19","2022-07-19","FED.",631,null,null,330,null,400,30,1391,"REC. FINANCIEROS"]
["DG","ASISTIR A REALIZAR DIFERENTES COMISIONES ",1,"EDO.","XALAPA","2022-07-19","2022-07-19","FED.",205,null,null,330,null,400,30,965,"REC. FINANCIEROS"]
["DG","ASISTIR A REALIZAR DIFERENTES COMISIONES ",1,"EDO.","XALAPA","2022-07-19","2022-07-19","FED.",857,null,null,330,null,null,null,1187,"REC. FINANCIEROS"]
["DG","ASISTIR A REALIZAR DIFERENTES COMISIONES ",1,"EDO.","XALAPA","2022-07-19","2022-07-19","FED.",1499,null,null,null,null,null,null,1499,"REC. FINANCIEROS"]
["SA","ASISTIR A REALIZAR DIFERENTES COMISIONES ",1,"EDO.","XALAPA","2022-07-19","2022-07-19","FED.",null,null,null,990,null,300,null,1290,"REC. FINANCIEROS"]
["SA","ASISTIR A REALIZAR DIFERENTES COMISIONES ",1,"EDO.","XALAPA","2022-07-19","2022-07-19","FED.",null,null,null,330,null,600,null,{"$f":"SUM(I20:O20)","v":930},"REC. FINANCIEROS"]
["SA","ASISTIR A REALIZAR DIFERENTES COMISIONES ",1,"EDO.","XALAPA","2022-07-19","2022-07-19","FED.",null,null,null,null,null,550,null,{"$f":"SUM(I21:O21)","v":550},"REC. FINANCIEROS"]
["SA","ASISTIR A REALIZAR DIFERENTES COMISIONES ",1,"EDO.","XALAPA","2022-07-20","2022-07-20","FED.",null,null,null,330,null,300,null,{"$f":"SUM(I22:O22)","v":630},"REC. FINANCIEROS"]
["SA","ASISTIR A REALIZAR DIFERENTES COMISIONES ",1,"EDO.","XALAPA","2022-07-20","2022-07-20","FED.",null,null,null,165,null,300,null,{"$f":"SUM(I23:O23)","v":465},"REC. FINANCIEROS"]
["DG","ASISTIR A REALIZAR DIFERENTES COMISIONES ",1,"EDO.","MISANTLA","2022-07-20","2022-07-20","FED.",null,null,null,598,null,740.88,null,{"$f":"SUM(I24:O24)","v":1338.88},"REC. FINANCIEROS"]
["DG","ASISTIR A REALIZAR DIFERENTES COMISIONES ",1,"EDO.","XALAPA","2022-07-20","2022-07-20","FED.",null,null,null,704,null,null,null,{"$f":"SUM(I25:O25)","v":704},"REC. FINANCIEROS"]
["DG","ASISTIR A REALIZAR DIFERENTES COMISIONES ",1,"EDO.","XALAPA","2022-07-20","2022-07-20","FED.",null,null,null,109,null,null,null,{"$f":"SUM(I26:O26)","v":109},"REC. FINANCIEROS"]
["ACAD.","ASISTIR A REALIZAR DIFERENTES COMISIONES ",1,"EDO.","MEXICO","2022-07-20","2022-07-20","FED.",487,null,null,640,null,500,null,{"$f":"SUM(I27:O27)","v":1627},"REC. FINANCIEROS"]
["SA","ASISTIR A REALIZAR DIFERENTES COMISIONES ",1,"EDO.","XALAPA","2022-07-20","2022-07-20","FED.",null,null,null,165,null,300,null,{"$f":"SUM(I28:O28)","v":465},"REC. FINANCIEROS"]
["PYV","ASISTIR A EXPOSICIÓN DE PROYECTOS ",3,"EDO.","PEROTE","2022-07-20","2022-07-20","FED.",450,null,null,null,null,150,null,{"$f":"SUM(I29:O29)","v":600},"REC. FINANCIEROS"]
["PYV","ASISTIR A LA EXPO FERIA CON STAND DEL INSTITUTO",1,"EDO.","LAS VIGAS","2022-07-20","2022-07-20","FED.",278.4,null,null,null,null,150,null,{"$f":"SUM(I30:O30)","v":428.4},"REC. FINANCIEROS"]
["PYV","ASISTIR A ENTREGA DE OFICIOS A DIRECTORES DE BACHILLERATOS",1,"EDO.","PEROTE Y MUNICIPIOS","2022-07-20","2022-07-20","FED.",null,null,null,null,null,250,null,{"$f":"SUM(I31:O31)","v":250},"REC. FINANCIEROS"]
["PYV","ASISTIR A ENTREVISTA EN LA RADIO \"EN CONTACTO\"",1,"EDO.","XALAPA","2022-07-20","2022-07-20","FED.",null,null,167,null,null,null,135,{"$f":"SUM(I32:O32)","v":302},"REC. FINANCIEROS"]
["ACAD.","ASISTIR AL ITS DE MISANTLA",1,"EDO.","MISANTLA","2022-07-27","2022-07-27","FED.",null,null,null,null,null,435,null,{"$f":"SUM(I33:O33)","v":435},"REC. FINANCIEROS"]
["DG","ASISTIR A REALIZAR DIFERENTES COMISIONES ",1,"EDO.","XALAPA","2022-07-27","2022-07-27","FED.",null,null,null,90,null,500,null,{"$f":"SUM(I34:O34)","v":590},"REC. FINANCIEROS"]
["DG","ASISTIR REUNIÓN DE TRABAJO ANTE  EL GOBERNADOR DEL ESTADO",1,"EDO.","XALAPA","2022-07-27","2022-07-27","FED.",135,null,null,689,null,null,null,{"$f":"SUM(I35:O35)","v":824},"REC. FINANCIEROS"]
["PYV","ASISTIR A MODULO DE PROMOCIÓN EN DIFERENTES MUNICIPIOS",4,"EDO.","ACAJETE, ATZALAN, VILLA ALDAMA","2022-07-27","2022-07-27","FED.",1500,null,null,null,null,1100,null,{"$f":"SUM(I36:O36)","v":2600},"REC. FINANCIEROS"]
["DG","ASISTIR A REALIZAR DIFERENTES COMISIONES ",1,"EDO.","XALAPA","2022-07-27","2022-07-27","FED.",null,null,null,657,null,300,null,{"$f":"SUM(I37:O37)","v":957},"REC. FINANCIEROS"]
["DG","ASISTIR A REALIZAR DIFERENTES COMISIONES ",1,"EDO.","XALAPA","2022-07-27","2022-07-27","FED.",379,null,null,330,null,515.16,null,{"$f":"SUM(I38:O38)","v":1224.16},"REC. FINANCIEROS"]
["ACAD.","ASISTIR A LAS INSTALACIONES DEL CECYTEV",1,"EDO.","ATZALAN","2022-07-27","2022-07-27","FED.",null,null,null,null,null,350,null,{"$f":"SUM(I39:O39)","v":350},"REC. FINANCIEROS"]
["PYV","ASISTIR A REVISIÓN DE INFORMACIÓN PARA EL 4TO INFORME DE GOBIERNO",1,"EDO.","XALAPA","2022-07-28","2022-07-28","FED.",null,null,null,null,null,649.8,null,{"$f":"SUM(I40:O40)","v":649.8},"REC. FINANCIEROS"]
["SA","ASISTIR A REALIZAR DIFERENTES COMISIONES ",1,"EDO.","XALAPA","2022-07-29","2022-07-29","FED.",null,null,null,165,null,300,null,{"$f":"SUM(I41:O41)","v":465},"REC. FINANCIEROS"]
["SIND.","ASISTIR A REUNIÓN EN FESTEV",3,"EDO.","XALAPA","2022-07-29","2022-07-29","FED.",600,null,null,null,null,null,null,{"$f":"SUM(I42:O42)","v":600},"REC. FINANCIEROS"]
["PYV","ASISTIR A LA ENTREGA-RECEPCIÓN EN LA DET",1,"EDO.","XALAPA","2022-07-29","2022-07-29","FED.",null,null,null,null,null,250,null,{"$f":"SUM(I43:O43)","v":250},"REC. FINANCIEROS"]
[]
[]
["ACAD.","DIRECCIÓN ACADÉMICA"]
["SIND.","SINDICATO"]
["ADMO.","SUBDIRECCIÓN ADMINISTRATIVA"]
["FED. ","RECURSO FEDERAL"]
["I.P.","INGRESOS PROPIOS"]

{"sheet":"Hoja2","index":1,"n_rows":0,"n_cols":0,"rows_kept":0,"cut":false,"hidden":false,"merged":[]}

{"sheet":"Hoja3","index":2,"n_rows":0,"n_cols":0,"rows_kept":0,"cut":false,"hidden":false,"merged":[]}